Cogmind - Beta 16 @@@ ROGUE MODE // 2025.10.30 @ 17:04:20 Player: Reflectatory Result: Destroyed by P-80 Master with Gamma Rifle Performance ------------- Evolutions (7) 3500 Regions Visited (14) 2800 Robots Destroyed (91) 455 Value Destroyed (4430) 4430 Prototype IDs (12) 240 Alien Tech Used (0) 0 Bonus (5279) 5279 TOTAL SCORE: 16704 Bonus ------- High Alert Combat Kills 494 Follower Combat Kills 3242 Network Hubs Disabled 400 Registered with UFD 300 Met Optimus in HQ 500 Built Enhanced Grunts 300 A7 Reached Mainframe 300 Friendly Fire -257 Cogmind --------- Core Integrity 0/1300 Matter 300/300 Energy 99/100 System Corruption 6% Temperature Cool (0) Movement Core (50) Location -3/Research Parts ------- > --- POWER (2) -------- (None) > --- PROPULSION (5) --- (None) > --- UTILITY (10) ----- (None) > --- WEAPON (4) ------- (None) > --- INVENTORY (5) ---- Light Particle Reactor Advanced Remote Force Field Peak State ------------ > --- POWER ------------ Particle Reactor Quantum Reactor > --- PROPULSION ------- Biometal Medium Treads Myomer Leg Myomer Leg Myomer Leg Biometal Leg > --- UTILITY ---------- Enhanced Optical Array Long-range Sensor Array Advanced Signal Interpreter Improved Targeting Computer Improved Armor Integrity Analyzer Improved Armor Integrity Analyzer Improved Armor Integrity Analyzer Improved Phase Shifter Experimental Thermal Shield Advanced System Shield > --- WEAPON ----------- Ionic Axe Ionic Axe Ionic Axe Ionic Axe > --- INVENTORY -------- Light Particle Reactor Light Particle Reactor Flexi-carbon Leg Quantum Rifle Ionic Axe [Rating: 147] Favorites ----------- Power Light Ion Engine Engine Light Ion Engine Power Core Neutrino Core Reactor Antimatter Reactor Propulsion Flexi-carbon Leg Treads Heavy Treads Leg Flexi-carbon Leg Wheel Armored Wheel Hover Unit Backup Propulsion III Utility Advanced Signal Interpreter Device Triangulator Storage Small Storage Unit Processor Advanced Signal Interpreter Hackware Improved Hacking Suite Protection Improved Medium Armor Plating Weapon Ionic Axe Energy Gun Medium Laser Ballistic Gun Barrage Gun Ballistic Cannon Advanced Assault Cannon Launcher Rocket Launcher Slashing Weapon Ionic Axe Build | -11 -10 -10 -9 -9 -6 -5 -5 -5 -5 -5 -5 -5 -4 -3 ------- Run | Yrd Mat Sub Rec Scr Fac Fac Was Fac Ext Cet Arc Hub Fac Res Slots Evolved 14 | . . . . . 8 2 . . . . . . 2 2 Power 1 | . . . . . 1 . . . . . . . . . Propulsion 3 | . . . . . 2 1 . . . . . . . . Utility 8 | . . . . . 5 1 . . . . . . . 2 Weapon 2 | . . . . . . . . . . . . . 2 . Parts Attached 148 | 6 1 3 4 1 21 . 7 7 32 4 2 11 31 18 Power 20 | 1 . . 1 . 3 . 2 . 4 1 1 1 2 4 Engine 5 | 1 . . 1 . 1 . . . 1 . . . 1 . Core 4 | . . . . . 2 . . . 2 . . . . . Reactor 11 | . . . . . . . 2 . 1 1 1 1 1 4 Propulsion 47 | 2 1 1 1 1 6 . 3 . 13 2 1 1 10 5 Treads 11 | . . . . . . . 3 . . 2 1 1 . 4 Leg 25 | . . . . . 1 . . . 13 . . . 10 1 Wheel 6 | 2 1 1 1 1 . . . . . . . . . . Hover 5 | . . . . . 5 . . . . . . . . . Flight . | . . . . . . . . . . . . . . . Utility 55 | 1 . . 1 . 8 . . 6 13 1 . 5 12 8 Device 31 | . . . 1 . 4 . . 5 6 . . 3 8 4 Storage 1 | 1 . . . . . . . . . . . . . . Processor 8 | . . . . . 1 . . . 1 . . . 2 4 Hackware 2 | . . . . . 1 . . . . . . . 1 . Protection 13 | . . . . . 2 . . 1 6 1 . 2 1 . Artifact . | . . . . . . . . . . . . . . . Weapon 26 | 2 . 2 1 . 4 . 2 1 2 . . 4 7 1 Energy Gun 7 | 2 . . . . . . 2 . . . . 1 1 1 Energy Cannon . | . . . . . . . . . . . . . . . Ballistic Gun 2 | . . 1 . . . . . . . . . . 1 . Ballistic Cannon 2 | . . . . . 2 . . . . . . . . . Launcher 3 | . . 1 1 . 1 . . . . . . . . . Special Weapon . | . . . . . . . . . . . . . . . Impact Weapon . | . . . . . . . . . . . . . . . Slashing Weapon 12 | . . . . . 1 . . 1 2 . . 3 5 . Piercing Weapon . | . . . . . . . . . . . . . . . Special Melee Weapon . | . . . . . . . . . . . . . . . Unidentified Prototypes 9 | . . . . . . . . 1 1 2 . 4 . 1 Parts Lost 96 | . . 4 . . 15 . 1 1 17 2 1 12 20 23 Power 13 | . . 1 . . 2 . . . 2 . . 1 3 4 Propulsion 28 | . . 1 . . 4 . . . 5 2 . 3 6 7 Utility 36 | . . . . . 5 . . 1 9 . 1 7 7 6 Weapon 19 | . . 2 . . 4 . 1 . 1 . . 1 4 6 Highest Loss Streak 15 | . . 3 . . 8 . 1 1 4 2 1 7 7 15 To Critical Strikes 3 | . . . . . . . . . 1 . . 2 . . Average Backups 4 | 2 5 5 5 6 1 . 1 3 4 5 5 4 3 3 Power . | . 1 1 . . . . . . . 1 1 1 1 1 Propulsion 1 | 1 2 3 3 4 . . . . 1 2 2 . . . Utility . | . . . . . . . . 2 . 1 1 2 . . Weapon 1 | . 1 1 1 1 1 . . 1 1 1 1 1 1 1 Tool/Special . | . . . . . . . . . . . . . . . Unused Backups 11 | . . . . 3 2 . . 1 . . . 3 . 2 Power 1 | . . . . . . . . . . . . . . 1 Propulsion 4 | . . . . 2 . . . . . . . 2 . . Utility 1 | . . . . . . . . . . . . . . 1 Weapon 5 | . . . . 1 2 . . 1 . . . 1 . . Tool/Special . | . . . . . . . . . . . . . . . Average Slot Usage (%) 83 | . 85 75 93 100 79 47 54 87 93 89 82 80 52 84 Engine 4 | . 14 11 14 14 4 . 4 . 2 . . . 1 . Core 1 | . . . . . 5 5 . . 1 5 1 . . . Reactor 4 | . . . . . . . 2 11 5 4 9 10 3 6 Treads 4 | . . . . . . . 7 17 2 9 15 16 . 5 Leg 6 | . . . . . 1 5 . . 23 8 1 . 10 14 Wheel 8 | . 28 21 28 28 13 . . . . . . . . . Device 14 | . . . 7 14 11 11 11 29 21 17 11 9 7 13 Storage 3 | . 14 14 14 14 1 . . . . . . . . . Processor 6 | . . . . . 5 5 5 5 8 6 5 5 9 20 Hackware 2 | . . . . . 4 5 5 5 . . . . 2 3 Protection 7 | . . . . . 11 . . 3 11 21 23 24 1 . Energy Gun 4 | . 28 20 14 14 1 . 3 5 . . . . 1 . Ballistic Cannon 1 | . . . . . 9 . . . . . . . . . Launcher 2 | . . 5 6 14 . . . . . . . . . . Slashing Weapon 6 | . . . . . . 5 5 5 10 11 11 10 10 17 Peak Build Rating 147 | 6 6 7 10 14 60 34 77 105 103 111 111 130 114 147 Average Rating 65 | 4 6 5 8 11 46 34 51 102 84 106 108 117 63 120 On Entrance 47 | . 6 6 7 9 14 31 34 77 103 82 111 109 30 97 Avg Prop Armor Cover (%) 8 | . . . . . 5 15 10 . 2 2 2 . 6 11 Naked Turns 25 | . . . . . . . . . . . . . . 25 Heaviest Build 90 | 12 12 13 15 15 49 10 40 61 64 67 70 90 58 73 Greatest Support 188 | 20 26 26 26 24 35 10 140 170 170 160 188 188 115 103 Greatest Overweight (x) 6 | 1 . . . . 6 . 1 . 2 . . . 2 1 Average Overweight (x) . | . . . . . 1 . . . . . . . . . Largest Inventory Capacity 8 | 8 8 8 8 8 8 5 5 5 5 5 5 5 5 5 Average Capacity 5 | 6 8 8 8 8 5 5 5 5 5 5 5 5 5 5 Most Carried 8 | 4 6 6 6 8 6 2 5 5 5 5 5 5 5 5 Average Carried 4 | 2 5 5 5 7 4 2 3 4 4 5 5 4 3 3 Final Capacity 8 | 8 8 8 8 8 5 5 5 5 5 5 5 5 5 5 Final Carried 8 | 4 6 5 6 8 3 2 5 5 5 5 5 5 3 2 Scrap Suit Usage (%) 13 | . . . . . 95 . . . . . . . . . Parts Cannibalized 7 | . . . . . 7 . . . . . . . . . Class Distribution -------------------- 61% | Mutant 11% | Scavenger-Assassin 10% | Commander-Mutant 8% | Scavenger-Gladiator 7% | Scavenger-Mutant Dominant Class ---------------- Mutant | -10/Materials Mutant | -10/Subcaves Mutant | -9/Recycling Mutant | -9/Scraptown Mutant | -6/Factory Mutant | -5/Factory Mutant | -5/Waste Mutant | -5/Factory Scavenger-Gladiator | -5/Extension Commander-Mutant | -5/Cetus Commander-Mutant | -5/Archives Commander-Mutant | -5/Hub_04(d) Scavenger-Assassin | -4/Factory Mutant | -3/Research Resources | -11 -10 -10 -9 -9 -6 -5 -5 -5 -5 -5 -5 -5 -4 -3 ----------- Run | Yrd Mat Sub Rec Scr Fac Fac Was Fac Ext Cet Arc Hub Fac Res Matter Collected 2265 | 190 80 125 85 30 374 . 330 90 360 40 12 98 269 182 Remotely . | . . . . . . . . . . . . . . . Salvage Created 4784 | . 135 139 . . 573 . . 486 1562 . . 552 880 457 Parts 190 | . . 9 . . 19 . . 16 59 . . 19 38 30 Haulers Intercepted 3 | . 1 . . . . . . . 2 . . . . . Recyclers Shooed 1 | . . . . . 1 . . . . . . . . . Parts Field Recycled . | . . . . . . . . . . . . . . . Retrieved Matter . | . . . . . . . . . . . . . . . Parts Self-Destructed 7 | . . 7 . . . . . . . . . . . . Prevented . | . . . . . . . . . . . . . . . Parts Restored . | . . . . . . . . . . . . . . . Kills | -11 -10 -10 -9 -9 -6 -5 -5 -5 -5 -5 -5 -5 -4 -3 ------- Run | Yrd Mat Sub Rec Scr Fac Fac Was Fac Ext Cet Arc Hub Fac Res Combat Hostiles Destroyed 72 | . 2 7 . . 16 . . 6 20 . . 3 11 7 Melee 45 | . . . . . . . . 6 20 . . 3 9 7 Guns 6 | . 1 3 . . 1 . . . . . . . 1 . Cannons 10 | . . . . . 10 . . . . . . . . . AOE 10 | . . 4 . . 5 . . . . . . . 1 . Classes Destroyed 16 | . 2 3 . . 5 . . 2 3 . . 1 . . Worker 2 | . . . . . 1 . . . . . . 1 . . Tunneler 1 | . . . . . . . . 1 . . . . . . Hauler 3 | . 1 . . . . . . . 2 . . . . . Recycler 3 | . . . . . . . . 1 . . . . 2 . Operator 1 | . . . . . 1 . . . . . . . . . Turret 2 | . . 2 . . . . . . . . . . . . Watcher 2 | . . . . . . . . . 1 . . 1 . . Swarmer 8 | . . 4 . . . . . . . . . . 3 1 Grunt 32 | . 2 . . . 9 . . 5 12 . . 1 3 . Brawler 2 | . . . . . 2 . . . . . . . . . Sentry 9 | . . . . . 1 . . 1 6 . . . . 1 Demolisher 1 | . . . . . . . . . . . . 1 . . Hunter 4 | . . . . . . . . . 1 . . . 3 . Programmer 12 | . . . . . 4 . . . . . . 1 2 5 Behemoth 1 | . . . . . . . . . 1 . . . . . Enhanced Grunt 2 | . . . . . . . . . . . . 2 . . Subdweller 3 | . . 3 . . . . . . . . . . . . Thug 2 | . . . . . . . . . . . . 2 . . Guerrilla 1 | . . . . . . . . . . . . 1 . . Best Kill Streak 6 | . 3 6 . . 4 . . 3 2 . . 2 4 4 Combat Bots Only 4 | . 2 4 . . 4 . . 3 2 . . 1 3 4 Max Kills in Single Turn 3 | . 1 3 . . 2 . . 1 1 . . 2 2 2 Gunslinging . | . . . . . . . . . . . . . . . Exploded 3 | . . 3 . . 2 . . . . . . . 1 . Melee 2 | . . . . . . . . 1 1 . . 1 1 2 Uniques/NPCs Destroyed . | . . . . . . . . . . . . . . . Combat | -11 -10 -10 -9 -9 -6 -5 -5 -5 -5 -5 -5 -5 -4 -3 -------- Run | Yrd Mat Sub Rec Scr Fac Fac Was Fac Ext Cet Arc Hub Fac Res Hostile Shots Fired 1224 | . 8 58 4 . 209 . 1 55 196 3 16 97 311 266 Missed 392 | . 2 21 3 . 72 . . 13 43 1 2 21 113 101 Deflected 1 | . . . . . . . . . . . . . 1 . Hits 832 | . 6 37 1 . 137 . 1 42 153 2 14 76 198 165 Melee 10 | . . . . . 7 . 1 2 . . . . . . Projectile 822 | . 6 37 1 . 130 . . 40 153 2 14 76 198 165 AOE 6 | . . 1 . . 1 . . . . . . 3 1 . Critical Strikes 51 | . . . . . 3 . 1 1 7 . 1 10 11 17 Actively Blocked 1 | . . . . . . . . . 1 . . . . . Part Disruptions 3 | . . . . . . . . 1 . . . . 1 1 Damage Taken 17696 | . 73 473 15 . 2342 . 59 543 3165 69 433 3797 3189 3538 Core 3170 | . 11 102 15 . 479 . 59 70 299 . 32 208 586 1309 Absorbed by Shields 651 | . . . . . . . . 171 350 12 . . . 118 Redirected to Shielding 101 | . . . . . . . . . 34 . 13 54 . . Ignored by Resistances 123 | . . . . . . . . 67 56 . . . . . Regen/Repaired (Parts) 196 | . . . . . 63 . 118 15 . . . . . . Core Remaining (%) 54 | 100 . . . 48 43 . . . . . . 33 49 . Volleys Fired 95 | . 8 26 . . 52 . . 3 . . . 1 5 . Largest 2 | . 2 2 . . 2 . . 1 . . . 1 2 . Hottest 125 | . 100 100 . . 90 . . 81 . . . 60 125 . Shots Fired 156 | . 16 32 . . 96 . . 3 . . . 1 8 . Gun 54 | . 16 16 . . 10 . . 3 . . . 1 8 . Cannon 80 | . . . . . 80 . . . . . . . . . Launcher 22 | . . 16 . . 6 . . . . . . . . . Special . | . . . . . . . . . . . . . . . Kinetic 84 | . . . . . 80 . . . . . . . 4 . Thermal 45 | . 16 16 . . 10 . . 3 . . . . . . Explosive 22 | . . 16 . . 6 . . . . . . . . . Electromagnetic 5 | . . . . . . . . . . . . 1 4 . Robot Hit Streak 13 | . 8 13 . . 9 . . 1 . . . . 3 . Robot Miss Streak 4 | . 1 1 . . 4 . . 1 . . . . 1 . Penetration Max . | . . . . . . . . . . . . . . . Secondary Targets 1 | . . 1 . . . . . . . . . . . . Max Gunslinging Chain 1 | . . 1 . . . . . . . . . . . . Shots Hit Robots 285 | . 15 21 . . 60 . . 19 75 2 . 27 41 25 Core Hits 144 | . 6 17 . . 33 . . 6 32 1 . 18 19 12 Critical Kills . | . . . . . . . . . . . . . . . Critical Parts Destroyed . | . . . . . . . . . . . . . . . Critical Strikes 45 | . 2 2 . . 5 . . 4 16 . . 4 7 5 Burn 5 | . 2 2 . . 1 . . . . . . . . . Blast 4 | . . . . . 4 . . . . . . . . . Sever 36 | . . . . . . . . 4 16 . . 4 7 5 Melee Attacks 255 | . . . . . . . . 26 98 3 . 35 60 33 Impact . | . . . . . . . . . . . . . . . Slashing 255 | . . . . . . . . 26 98 3 . 35 60 33 Piercing . | . . . . . . . . . . . . . . . Sneak Attacks 8 | . . . . . . . . 2 4 . . . 1 1 Combat Hostiles . | . . . . . . . . . . . . . . . Follow-up Attacks 30 | . . . . . . . . . 9 1 . 4 6 10 Damage Inflicted 12964 | . 187 602 . . 2171 . . 913 3506 87 . 2020 2262 1216 Guns 590 | . 187 188 . . 80 . . 47 . . . . 88 . Cannons 1491 | . . . . . 1491 . . . . . . . . . Explosions 2350 | . . 414 . . 600 . . . . . . 840 496 . Melee 8530 | . . . . . . . . 866 3506 87 . 1179 1676 1216 Ramming 3 | . . . . . . . . . . . . 1 2 . Kinetic 1530 | . . . . . 1491 . . . . . . . 39 . Thermal 1114 | . 187 188 . . 196 . . 47 . . . . 496 . Explosive 898 | . . 414 . . 484 . . . . . . . . . Electromagnetic 889 | . . . . . . . . . . . . 840 49 . Impact . | . . . . . . . . . . . . . . . Slashing 8530 | . . . . . . . . 866 3506 87 . 1179 1676 1216 Piercing . | . . . . . . . . . . . . . . . Highest Corruption 21 | . . . . . 5 . . . . . . 21 8 6 Average Corruption 4 | . . . . . 2 . . . . . . 5 7 4 Corruption Purged . | . . . . . . . . . . . . . . . Corruption Blocked . | . . . . . . . . . . . . . . . Effects 32 | . . . . . 4 . . . . . . 9 11 8 Message Errors 5 | . . . . . 1 . . . . . . 1 3 . Matter Fused 8 | . . . . . 1 . . . . . . 2 2 3 Heat Flow Errors 5 | . . . . . 2 . . . . . . 2 1 . Energy Discharges 5 | . . . . . . . . . . . . 2 1 2 Parts Fused 1 | . . . . . . . . . . . . . 1 . Data Loss (minor) 3 | . . . . . . . . . . . . 2 1 . Data Loss (major) 2 | . . . . . . . . . . . . . . 2 Misfires 2 | . . . . . . . . . . . . . 2 . Alerts 1 | . . . . . . . . . . . . . . 1 Overload Shots . | . . . . . . . . . . . . . . . Overflow Damage 701 | . . . . . 141 . . 68 116 . . 114 196 66 Projectiles 19 | . . . . . 19 . . . . . . . . . Explosions 294 | . . . . . 122 . . . . . . 42 130 . Melee 388 | . . . . . . . . 68 116 . . 72 66 66 Knockbacks 19 | . . . . . 19 . . . . . . . . . Impact . | . . . . . . . . . . . . . . . Kinetic 19 | . . . . . 19 . . . . . . . . . Secondary . | . . . . . . . . . . . . . . . Self-Inflicted Damage 727 | . . 50 . . 313 . . . . . . 213 151 . Shots 12 | . . 2 . . 6 . . . . . . 2 2 . Rammed 1 | . . . . . . . . . . . . 1 . . Targets Rammed 2 | . . . . . . . . . . . . 1 1 . Kicked 1 | . . . . . . . . . . . . . 1 . Crushed . | . . . . . . . . . . . . . . . Highest Temperature 501 | . 335 8 . . 501 . . 92 36 . . 195 88 41 Average Temperature 133 | . 189 8 . . 144 . . 41 18 . . 135 36 22 Received Heat Transfer 2729 | . 42 162 9 . 648 . . 165 668 9 63 120 138 705 Effects 10 | . 1 . . . 9 . . . . . . . . . Shutdowns 3 | . . . . . 3 . . . . . . . . . Energy Bleed 2 | . 1 . . . 1 . . . . . . . . . Interference 2 | . . . . . 2 . . . . . . . . . Matter Decay 1 | . . . . . 1 . . . . . . . . . Short Circuit 2 | . . . . . 2 . . . . . . . . . Siege Activations . | . . . . . . . . . . . . . . . Martial Activations . | . . . . . . . . . . . . . . . Shielding Activations 1 | . . . . . . . . . . . . . 1 . Total Turns 13 | . . . . . . . . . . . . . 13 . Longest Duration 13 | . . . . . . . . . . . . . 13 . Robots Disrupted . | . . . . . . . . . . . . . . . Combat Hostiles . | . . . . . . . . . . . . . . . Robots Corrupted 3 | . . . . . . . . . . . . 3 . . Combat Hostiles . | . . . . . . . . . . . . . . . Parts Fried 7 | . . . . . . . . . . . . 7 . . Impact Corruptions . | . . . . . . . . . . . . . . . Robots Melted 1 | . 1 . . . . . . . . . . . . . Combat Hostiles 1 | . 1 . . . . . . . . . . . . . Parts Melted 10 | . 6 2 . . . . . 1 1 . . . . . Heat Transferred 2126 | . 703 703 . . 346 . . 74 . . . . 300 . Parts Sabotaged . | . . . . . . . . . . . . . . . Parts Stolen . | . . . . . . . . . . . . . . . Parts Stripped . | . . . . . . . . . . . . . . . Power Chain Reactions 1 | . . . . . . . . . . . . 1 . . Alert | -11 -10 -10 -9 -9 -6 -5 -5 -5 -5 -5 -5 -5 -4 -3 ------- Run | Yrd Mat Sub Rec Scr Fac Fac Was Fac Ext Cet Arc Hub Fac Res Maximum Alert Level 4 | . . . . . 1 . . 3 3 2 1 4 2 . Low Security (%) 46 | 100 100 . 100 . 97 100 100 38 . . 20 13 . 100 Level 1 17 | . . . . . 2 . . 17 8 . 79 29 73 . Level 2 26 | . . . . . . . . 11 84 100 . 7 26 . Level 3 8 | . . . . . . . . 33 7 . . 34 . . Level 4 1 | . . . . . . . . . . . . 15 . . Level 5 . | . . . . . . . . . . . . . . . High Security . | . . . . . . . . . . . . . . . Max Security . | . . . . . . . . . . . . . . . Peak Influence 1182 | . 50 . 30 . 263 109 38 1064 765 572 319 1182 499 186 Initial 499 | . . . 6 . . 109 31 . 481 416 172 62 499 186 Average 303 | . 22 . 1 . 55 100 9 454 535 493 246 614 359 86 Influence Increases 6760 | . 57 180 66 . 708 . 46 1633 1268 195 177 1703 424 303 Destroy 0b10 Robot/C 2780 | . 40 120 . . 320 . . 660 720 80 80 400 220 140 Destroy 0b10 Robot/NC 115 | . 5 . . . 10 . . 35 30 5 . 20 10 . Destroy Leader 452 | . 12 . . . 80 . . 122 74 . . 94 40 30 Allied During Kill 1453 | . . . . . . . . 581 290 85 80 417 . . Successful Hack 153 | . . . 36 . 24 . . . 42 9 . 18 . 24 Disable Machine 480 | . . . . . 120 . . 45 15 . 15 240 45 . Destroy Structure 892 | . . . . . 94 . 46 190 22 16 2 454 64 4 Partial Spotted 30 | . . . . . 30 . . . . . . . . . Lose Combat Pursuer 405 | . . 60 30 . 30 . . . 75 . . 60 45 105 Influence Decreases 6760 | . 20 203 50 30 483 136 135 650 1508 507 429 861 1090 658 Entered New Map 2126 | . . 18 8 30 . 116 58 . 502 327 259 117 522 169 Time Decay 2795 | . 20 145 31 . 352 20 67 320 556 160 160 294 368 302 Lost Part 898 | . . 40 . . 131 . 10 10 170 20 10 120 200 187 Lost Ally 780 | . . . . . . . . 320 280 . . 180 . . Purge Threat 161 | . . . 11 . . . . . . . . 150 . . Squads Dispatched 45 | . . . . . 11 . . 10 5 . . 5 9 5 Investigation 17 | . . . . . 6 . . 4 3 . . 1 3 . Extermination 9 | . . . . . 3 . . 1 . . . 1 2 2 Reinforcement 9 | . . . . . 1 . . 2 2 . . 2 1 1 Assault 5 | . . . . . . . . 2 . . . 1 . 2 Garrison 5 | . . . . . 1 . . 1 . . . . 3 . Intercept . | . . . . . . . . . . . . . . . Searches Triggered . | . . . . . . . . . . . . . . . Construction Impeded 1 | . . . . . . . . . . . . . 1 . Haulers Reinforced . | . . . . . . . . . . . . . . . Active Scanning Responses . | . . . . . . . . . . . . . . . Cargo Convoy Interrupts . | . . . . . . . . . . . . . . . Stealth | -11 -10 -10 -9 -9 -6 -5 -5 -5 -5 -5 -5 -5 -4 -3 --------- Run | Yrd Mat Sub Rec Scr Fac Fac Was Fac Ext Cet Arc Hub Fac Res Distress Signals 12 | . . . . . . . . 1 3 1 . 3 . 4 Communications Jammed . | . . . . . . . . . . . . . . . Distress Signals . | . . . . . . . . . . . . . . . Times Spotted 214 | . 3 11 1 . 26 . 6 21 47 5 4 27 25 38 Peak Tracking Total 23 | . 2 5 2 . 6 . 6 5 5 5 2 7 7 23 Tactical Retreats 19 | . . 1 1 . 2 . . . 4 . . 4 3 4 Traps | -11 -10 -10 -9 -9 -6 -5 -5 -5 -5 -5 -5 -5 -4 -3 ------- Run | Yrd Mat Sub Rec Scr Fac Fac Was Fac Ext Cet Arc Hub Fac Res Traps Triggered 4 | . . . . . 2 1 . . . . . 1 . . Indirectly . | . . . . . . . . . . . . . . . Trap Hack Attempts . | . . . . . . . . . . . . . . . Triggered . | . . . . . . . . . . . . . . . Disarmed . | . . . . . . . . . . . . . . . Reprogrammed . | . . . . . . . . . . . . . . . Reused . | . . . . . . . . . . . . . . . Traps Extracted . | . . . . . . . . . . . . . . . Installed . | . . . . . . . . . . . . . . . Triggered . | . . . . . . . . . . . . . . . Machines | -11 -10 -10 -9 -9 -6 -5 -5 -5 -5 -5 -5 -5 -4 -3 ---------- Run | Yrd Mat Sub Rec Scr Fac Fac Was Fac Ext Cet Arc Hub Fac Res Machines Disabled 35 | . . 3 . . 8 . . 3 1 . 1 16 3 . Max in Single Turn 8 | . . 2 . . 4 . . . . . . 8 3 . Garrison Access 3 | . . . . . . 1 . 1 . . . . . 1 Network Hub 2 | . . . . . . . . . . . . 2 . . Machines Repaired . | . . . . . . . . . . . . . . . Machines Dismantled . | . . . . . . . . . . . . . . . Machines Sabotaged . | . . . . . . . . . . . . . . . Overloaded Fab Kills . | . . . . . . . . . . . . . . . Hacking | -11 -10 -10 -9 -9 -6 -5 -5 -5 -5 -5 -5 -5 -4 -3 --------- Run | Yrd Mat Sub Rec Scr Fac Fac Was Fac Ext Cet Arc Hub Fac Res Machines Accessed 63 | . . . 11 8 11 1 . 6 9 3 1 4 5 4 Terminals 31 | . . . 6 . 3 . . 3 9 3 . 4 1 2 Fabricators 2 | . . . . . 1 . . . . . . . . 1 Repair Stations . | . . . . . . . . . . . . . . . Recycling Units 12 | . . . 3 . 5 . . 1 . . . . 3 . Scanalyzers 3 | . . . . . 2 . . 1 . . . . . . Garrison Access 4 | . . . . . . 1 . 1 . . . . 1 1 Total Hacks 219 | . . . 57 39 29 1 . 13 19 7 25 9 10 10 Successful 145 | . . . 41 39 12 1 . 7 8 2 25 3 4 3 Failed 73 | . . . 16 . 16 . . 6 11 5 . 6 6 7 Catastrophic 13 | . . . 1 . . . . 2 1 2 . 1 2 4 Database Lockouts 1 | . . . . . 1 . . . . . . . . . Manual 60 | . . . 21 . 16 . . 4 3 1 . 6 7 2 Terminals 84 | . . . 29 . 6 . . 6 19 7 . 9 3 5 Fabricators 4 | . . . . . 2 . . . . . . . . 2 Repair Stations . | . . . . . . . . . . . . . . . Recycling Units 19 | . . . 3 . 10 . . 2 . . . . 4 . Scanalyzers 14 | . . . . . 11 . . 3 . . . . . . Garrison Access 9 | . . . . . . 1 . 2 . . . . 3 3 Terminal Hacks 107 | . . . 33 39 . . . 1 5 2 25 1 . 1 Record 89 | . . . 24 39 . . . . . 1 25 . . . Robot Analysis 1 | . . . 1 . . . . . . . . . . . Open Door 6 | . . . . . . . . . 5 1 . . . . Branch Access Points 1 | . . . 1 . . . . . . . . . . . Emergency Access Points 2 | . . . 1 . . . . 1 . . . . . . Terminal Index 2 | . . . 1 . . . . . . . . . . 1 Scanalyzer Index 1 | . . . 1 . . . . . . . . . . . Unreport Threat 2 | . . . 1 . . . . . . . . 1 . . Transport Status 1 | . . . 1 . . . . . . . . . . . Registered Components 1 | . . . 1 . . . . . . . . . . . Release Object 1 | . . . 1 . . . . . . . . . . . Fabricator Hacks 3 | . . . . . 1 . . . . . . . . 2 Network Status 2 | . . . . . 1 . . . . . . . . 1 Build 1 | . . . . . . . . . . . . . . 1 Repair Station Hacks . | . . . . . . . . . . . . . . . Recycling Unit Hacks 2 | . . . 2 . . . . . . . . . . . Report Inventory 2 | . . . 2 . . . . . . . . . . . Scanalyzer 10 | . . . . . 7 . . 3 . . . . . . Insert Component 1 | . . . . . 1 . . . . . . . . . Analyze 1 | . . . . . 1 . . . . . . . . . Retrieve Study 8 | . . . . . 5 . . 3 . . . . . . Garrison Access Hacks 2 | . . . . . . 1 . 1 . . . . . . Seal Access 2 | . . . . . . 1 . 1 . . . . . . Unauthorized Hacks 21 | . . . 6 . 4 . . 2 3 . . 2 4 . Terminals 13 | . . . 6 . . . . 1 3 . . 2 1 . Botnet 13 | . . . 6 . . . . 1 3 . . 2 1 . Fabricators . | . . . . . . . . . . . . . . . Repair Stations . | . . . . . . . . . . . . . . . Recycling Units 8 | . . . . . 4 . . 1 . . . . 3 . Fedlink 8 | . . . . . 4 . . 1 . . . . 3 . Scanalyzers . | . . . . . . . . . . . . . . . Garrison Access . | . . . . . . . . . . . . . . . Data Cores Recovered . | . . . . . . . . . . . . . . . Used . | . . . . . . . . . . . . . . . Hacking Detections 39 | . . . 7 . 8 . . 6 6 2 . 4 2 4 Full Trace Events 8 | . . . 1 . 1 . . 3 3 . . . . . Feedback Events . | . . . . . . . . . . . . . . . Feedback Blocked . | . . . . . . . . . . . . . . . Robot Schematics Acquired . | . . . . . . . . . . . . . . . Robots Built . | . . . . . . . . . . . . . . . Authchips . | . . . . . . . . . . . . . . . Time . | . . . . . . . . . . . . . . . Total Robot Build Rating . | . . . . . . . . . . . . . . . Part Schematics Acquired 1 | . . . . . 1 . . . . . . . . . Parts Built 2 | . . . . . . . . . . . . . . 2 Authchips . | . . . . . . . . . . . . . . . Time 128 | . . . . . . . . . . . . . . 128 Total Part Build Rating 16 | . . . . . . . . . . . . . . 16 Part Studies Acquired 6 | . . . . . 5 . . 1 . . . . . . Parts Repaired . | . . . . . . . . . . . . . . . Time . | . . . . . . . . . . . . . . . Parts Recycled . | . . . . . . . . . . . . . . . Recycled Matter . | . . . . . . . . . . . . . . . Retrieved Matter . | . . . . . . . . . . . . . . . Retrieved Components . | . . . . . . . . . . . . . . . Parts Scanalyzed 1 | . . . . . 1 . . . . . . . . . Part Schematics Acquired 1 | . . . . . 1 . . . . . . . . . Parts Damaged . | . . . . . . . . . . . . . . . Bothacking | -11 -10 -10 -9 -9 -6 -5 -5 -5 -5 -5 -5 -5 -4 -3 ------------ Run | Yrd Mat Sub Rec Scr Fac Fac Was Fac Ext Cet Arc Hub Fac Res Used RIF Installer . | . . . . . . . . . . . . . . . Robots Hacked . | . . . . . . . . . . . . . . . Non-combat . | . . . . . . . . . . . . . . . Combat . | . . . . . . . . . . . . . . . Robot Hacks Applied . | . . . . . . . . . . . . . . . Relay Couplers Released 1 | . . . . . . . . . . . . . . 1 Machine Destruction 1 | . . . . . . . . . . . . . . 1 Fabnet Peak Effective % . | . . . . . . . . . . . . . . . Robots Rewired 21 | . . . . . . . . . 21 . . . . . Allies Hacked . | . . . . . . . . . . . . . . . Hacks Repelled . | . . . . . . . . . . . . . . . Allies | -11 -10 -10 -9 -9 -6 -5 -5 -5 -5 -5 -5 -5 -4 -3 -------- Run | Yrd Mat Sub Rec Scr Fac Fac Was Fac Ext Cet Arc Hub Fac Res Total Allies 51 | . . . . . . . 19 . 27 5 . . . . Largest Group 19 | . . . . . . . 19 19 12 17 17 16 . . Highest-Rated Group 997 | . . . . . . . 702 702 520 997 997 838 . . Highest-Rated Ally 159 | . . . . . . . 50 50 159 159 159 96 . . Total Orders . | . . . . . . . . . . . . . . . Ally Attacks 670 | . . . . . . . 66 214 207 30 18 135 . . Total Damage 16939 | . . . . . . . 2833 5810 3450 895 479 3472 . . Kills 90 | . . . . . . . 6 34 20 5 4 21 . . Allies Corrupted 8 | . . . . . . . . 2 . . . 6 . . Allies Melted . | . . . . . . . . . . . . . . . Intel | -11 -10 -10 -9 -9 -6 -5 -5 -5 -5 -5 -5 -5 -4 -3 ------- Run | Yrd Mat Sub Rec Scr Fac Fac Was Fac Ext Cet Arc Hub Fac Res Active Infowar (turns) 7554 | . . . 329 1178 357 52 357 981 1626 335 322 560 758 699 Optics 1204 | . . . . . . . . . . . . . 505 699 Sensors 6051 | . . . 329 1178 319 52 357 981 1626 335 31 . 548 295 T.N.C. 934 | . . . . . . . . . 880 54 . . . . Triangulation 4293 | . . . . . 60 52 357 981 1626 335 322 560 . . Robot Analysis Total 1 | . . . 1 . . . . . . . . . . . Derelict Logs Recovered 1 | . . 1 . . . . . . . . . . . . Drone Launches . | . . . . . . . . . . . . . . . Drone Recoveries . | . . . . . . . . . . . . . . . Exploration | -11 -10 -10 -9 -9 -6 -5 -5 -5 -5 -5 -5 -5 -4 -3 ------------- Run | Yrd Mat Sub Rec Scr Fac Fac Was Fac Ext Cet Arc Hub Fac Res Turns Passed 9564 | 49 89 437 589 1178 1322 52 357 981 1626 335 322 651 852 724 Spaces Moved 6968 | 47 48 387 673 1299 1048 69 232 569 898 161 182 335 497 523 Core 167 | 5 . . . . . . . . . . . . 112 50 Treads 1439 | . . . . . . . 76 569 124 135 182 335 . 18 Legs 1640 | . . . . . . . . . 774 26 . . 385 455 Wheels 3421 | 42 48 387 673 1299 972 . . . . . . . . . Hover 301 | . . . . . 76 69 156 . . . . . . . Flight . | . . . . . . . . . . . . . . . Fastest Speed 50 | 50 80 90 85 85 53 70 60 155 120 120 160 160 100 50 Average Speed 112 | 77 82 93 85 89 97 70 121 155 125 153 160 162 120 112 Slowest Speed 570 | 100 90 100 90 90 570 70 160 160 260 160 160 165 200 225 Overloaded Moves . | . . . . . . . . . . . . . . . Propulsion Burnouts . | . . . . . . . . . . . . . . . Robots Hopped . | . . . . . . . . . . . . . . . Potential Cave-ins 18 | . . 18 . . . . . . . . . . . . Cave-ins Triggered 1 | . . . . . . . . . . . . 1 . . Exploration Rate (%) 44 | 3 9 11 99 83 36 3 83 17 86 73 94 40 14 18 Regions Visited 14 Branch Regions 7 Pre-discovered Areas 3 | . . . . 2 1 . . . . . . . . . Known Exits Taken 6 | . . . . . . . . 1 1 1 1 1 1 . Unknown Exits Taken 6 | 1 1 1 1 1 1 . . . . . . . . . Scrap Searched 3 | . . 2 . 1 . . . . . . . . . . Spaces Dug 67 | . . 61 . . 1 . . 1 1 . . 1 . 2 Terrain Destroyed 590 | . . 81 . . 130 . . 1 1 . . 331 44 2 Melee 5 | . . . . . . . . 1 1 . . 1 . 2 Projectile 15 | . . . . . 15 . . . . . . . . . AOE 570 | . . 81 . . 115 . . . . . . 330 44 . Terrain Rammed . | . . . . . . . . . . . . . . . Walls Destroyed . | . . . . . . . . . . . . . . . Machines Disabled . | . . . . . . . . . . . . . . . Actions | -11 -10 -10 -9 -9 -6 -5 -5 -5 -5 -5 -5 -5 -4 -3 --------- Run | Yrd Mat Sub Rec Scr Fac Fac Was Fac Ext Cet Arc Hub Fac Res Total 8213 | 56 80 427 682 1310 1249 73 305 623 1284 248 213 399 648 616 Wait 535 | . 23 11 . . 115 3 62 12 98 76 29 9 52 45 Move 6956 | 46 47 386 672 1298 1047 69 231 568 897 160 181 335 496 523 Hop . | . . . . . . . . . . . . . . . Pick Up 36 | 4 1 . 1 4 5 . 3 4 5 1 . 3 3 2 Fast Attach 83 | 6 . 2 1 . 8 . 5 4 15 3 . 2 25 12 Attach 33 | . . 1 1 . 6 1 . 1 8 . . 2 8 5 Detach 6 | . . . . . . . . . 2 . . 2 1 1 Swap 55 | . 1 1 2 2 9 . 2 3 15 1 2 10 3 4 Drop 44 | . . . . 5 7 . 2 2 11 5 1 7 1 3 Fire 95 | . 8 26 . . 52 . . 3 . . . 1 5 . Melee 214 | . . . . . . . . 26 84 2 . 28 53 21 Ram . | . . . . . . . . . . . . . . . Kick 1 | . . . . . . . . . . . . . 1 . Crush . | . . . . . . . . . . . . . . . Escape Stasis . | . . . . . . . . . . . . . . . Rewire 155 | . . . 5 1 . . . . 149 . . . . . Trap . | . . . . . . . . . . . . . . . Miscellaneous . | . . . . . . . . . . . . . . . Route ------- -11/Scrapyard -10/Materials -10/Subcaves -9/Recycling (discovered 2 exits: [*Fac] / *Scr) -9/Scraptown (discovered 2 exits: *Fac x2) -6/Factory (discovered 2 exits: *Fac / [*Low]) -5/Factory -5/Waste -5/Factory (discovered 2 exits: *Upp / *Ext) -5/Extension (discovered 2 exits: *Fac / *Cet) -5/Cetus -5/Archives (discovered 3 exits: *Fac / *Hub x2) -5/Hub_04(d) -4/Factory -3/Research History --------- Turn | Location | Event 4 | -11/Scrapyard | Discovered new exit (range 16) 50 | -11/Scrapyard | Entered Materials 133 | -10/Materials | Discovered new exit (range 5) 139 | -10/Materials | Entered Subcaves 140 | -10/Subcaves | Approached by a straggling Scientist 206 | -10/Subcaves | Learned Materials security intel 297 | -10/Subcaves | Shifting Twisted Machinery released Flamer 319 | -10/Subcaves | Discovered new exit (range 11) 327 | -10/Subcaves | Build established: Mutant 476 | -10/Subcaves | Ambushed by Subdweller buried in earth 478 | -10/Subcaves | Ambushed by Subdweller buried in earth 524 | -10/Subcaves | Lost 3 parts (1p2w) 576 | -10/Subcaves | Entered Recycling 757 | -9/Recycling | Discovered new exit (range 15) 1113 | -9/Recycling | Core integrity fell below 50% 1121 | -9/Recycling | Scanned before Scraplab entrance 1146 | -9/Recycling | Discovered new exit (range 2) 1165 | -9/Recycling | Entered Scraptown 1372 | -9/Scraptown | Discovered new exit (range 9) 1424 | -9/Scraptown | Visited Red Mages 1452 | -9/Scraptown | Visited IN-MT5's Study 1475 | -9/Scraptown | Visited Cyclists 1508 | -9/Scraptown | Visited UFD Registry 1508 | -9/Scraptown | Registered with UFD as "Beamshell" 1514 | -9/Scraptown | Visited Comm Corps 1555 | -9/Scraptown | Entered Cyclist Reading Room 1559 | -9/Scraptown | Learned location of Exiles (-9) 1559 | -9/Scraptown | Learned location of Zion (-6) 1595 | -9/Scraptown | Visited TADAMA 1635 | -9/Scraptown | Visited SPCMW 1663 | -9/Scraptown | Visited Spacefarers 1881 | -9/Scraptown | Visited Curators Association 1950 | -9/Scraptown | Visited Scrapoid Research Area 1979 | -9/Scraptown | Visited Abandonware Association 1995 | -9/Scraptown | Learned abandonware demo "TRNCOAT.EXE" 2015 | -9/Scraptown | Visited Scrap Suit Storage 2032 | -9/Scraptown | Found Scrap Suit 2054 | -9/Scraptown | Visited Derelict Rescue Squad 2064 | -9/Scraptown | Found DRS Beacon 2095 | -9/Scraptown | Visited Botcube Research 2104 | -9/Scraptown | Found Lrg. Botcube 2128 | -9/Scraptown | Visited Observation Area 2168 | -9/Scraptown | Visited Science Testing Area 2281 | -9/Scraptown | Met Optimus 2281 | -9/Scraptown | Accepted into 0bPrime 2341 | -9/Scraptown | Discovered new exit (range 3) 2343 | -9/Scraptown | Entered Factory 2343 | -6/Factory | Evolved 8 slots: Power x1, Propulsion x2, Utility x5 2385 | -6/Factory | Loaded intel: 8 recycling unit locations 2406 | -6/Factory | Learned location of Protoforge (-3) 2413 | -6/Factory | Discovered new exit (range 12) 2708 | -6/Factory | Allied Derelicts emerged from ambush trap array 2868 | -6/Factory | Lost 3 allies 2929 | -6/Factory | Spotted B-75 Beast 2980 | -6/Factory | Found Prototype Launcher 3602 | -6/Factory | Lost 3 parts (1u2w) 3627 | -6/Factory | Garrison activated, responded to threat 3636 | -6/Factory | Central database locked down 3656 | -6/Factory | Discovered new exit (range 11) 3665 | -6/Factory | Core integrity fell below 50% 3665 | -6/Factory | Entered another Factory area 3665 | -5/Factory | Evolved 2 slots: Propulsion x1, Utility x1 3691 | -5/Factory | Lost 8 parts (1p3n3u1w) 3717 | -5/Factory | Sucked down chute 3717 | -5/Factory | Entered Waste 3754 | -5/Waste | Spotted C-40 Crusher 3770 | -5/Waste | Crushed by Compactor (1 part destroyed, 2 dropped) 3780 | -5/Waste | Spotted C-40 Crusher 3785 | -5/Waste | Spotted C-40 Crusher 3788 | -5/Waste | Spotted C-40 Crusher 3791 | -5/Waste | Spotted C-40 Crusher 3791 | -5/Waste | Spotted C-40 Crusher 3800 | -5/Waste | Warlord forces began an assault 3805 | -5/Waste | Allies destroyed C-40 Crusher 3809 | -5/Waste | Allies destroyed C-40 Crusher 3813 | -5/Waste | Allies destroyed C-40 Crusher 3814 | -5/Waste | Allies destroyed C-40 Crusher 4037 | -5/Waste | Discovered new exit (range 16) 4061 | -5/Waste | Identified exit to Factory 4074 | -5/Waste | Entered Factory 4074 | -5/Factory | Accompanied by 19 allies 4564 | -5/Factory | Discovered new exit (range 10) 4576 | -5/Factory | Identified exit to Upper Caves 4615 | -5/Factory | Garrison activated, responded to threat 4665 | -5/Factory | Lost 6 allies 4674 | -5/Factory | First assault squad dispatched 4785 | -5/Factory | Lost 4 allies 4900 | -5/Factory | Loaded intel: 8 recycling unit locations 5031 | -5/Factory | Discovered new exit (range 16) 5053 | -5/Factory | Identified exit to Extension 5055 | -5/Factory | Entered Extension 5140 | -5/Extension | Lost 3 parts (1p2u) 5260 | -5/Extension | Rescued a captive Derelict 5321 | -5/Extension | Lost 4 allies 5333 | -5/Extension | Rescued a captive Derelict 5390 | -5/Extension | Lost 3 parts (1n2u) 5417 | -5/Extension | Rescued a captive Derelict 5417 | -5/Extension | Rescued a captive Derelict 5539 | -5/Extension | Lost 3 allies 5673 | -5/Extension | Build established: Scavenger-Gladiator 5679 | -5/Extension | Rescued a captive Derelict 5737 | -5/Extension | Spotted B-75 Beast 5759 | -5/Extension | Spotted B-75 Beast 5769 | -5/Extension | Destroyed B-75 Beast 5791 | -5/Extension | Allies destroyed B-75 Beast 5814 | -5/Extension | Lost 4 parts (1p1n1u1w) 5852 | -5/Extension | Lost 3 allies 6458 | -5/Extension | Rescued A7 6524 | -5/Extension | Build established: Scavenger-Assassin 6630 | -5/Extension | Discovered new exit (range 10) 6631 | -5/Extension | Discovered new exit (range 6) 6637 | -5/Extension | Identified exit to Cetus 6639 | -5/Extension | Identified exit to Factory 6681 | -5/Extension | Entered Cetus 6681 | -5/Cetus | Accompanied by 12 allies (A7) 6686 | -5/Cetus | Acquired a Cetus Manufacturing Module code from A7 6697 | -5/Cetus | Spotted Cetus Guard 6697 | -5/Cetus | Spotted Cetus Guard 6699 | -5/Cetus | Spotted Cetus Guard 6700 | -5/Cetus | Spotted Cetus Guard 6706 | -5/Cetus | Allies destroyed Cetus Guard 6712 | -5/Cetus | Allies destroyed Cetus Guard 6712 | -5/Cetus | Allies destroyed Cetus Guard 6717 | -5/Cetus | Allies destroyed Cetus Guard 6796 | -5/Cetus | Started Cetus Manufacturing Module 6809 | -5/Cetus | Escorted A7 to Cetus Mainframe 6821 | -5/Cetus | Manufactured an Enhanced Grunt 6846 | -5/Cetus | Manufactured an Enhanced Grunt 6871 | -5/Cetus | Manufactured an Enhanced Grunt 6896 | -5/Cetus | Manufactured an Enhanced Grunt 6921 | -5/Cetus | Manufactured an Enhanced Grunt 6961 | -5/Cetus | Discovered new exit (range 15) 6984 | -5/Cetus | Identified exit to Archives 7016 | -5/Cetus | Entered Archives 7016 | -5/Archives | Accompanied by 17 allies (A7) 7021 | -5/Archives | Received a hacking code to weaken MAIN.C 7025 | -5/Archives | Build established: Commander-Mutant 7069 | -5/Archives | Discovered new exit (range 16) 7088 | -5/Archives | Discovered exit to Factory (range 16) 7112 | -5/Archives | Unable to access archive contents 7130 | -5/Archives | Unable to access archive contents 7133 | -5/Archives | Discovered new exit (range 15) 7146 | -5/Archives | Unable to access archive contents 7162 | -5/Archives | Unable to access archive contents 7251 | -5/Archives | Identified exit to Hub_04(d) 7338 | -5/Archives | Entered Hub_04(d) 7338 | -5/Hub_04(d) | Accompanied by 16 allies 7619 | -5/Hub_04(d) | Network Hub disabled 7638 | -5/Hub_04(d) | First assault squad dispatched 7673 | -5/Hub_04(d) | Spotted Lightning 7685 | -5/Hub_04(d) | Spotted Lightning 7685 | -5/Hub_04(d) | Spotted Lightning 7691 | -5/Hub_04(d) | Allies destroyed Lightning 7697 | -5/Hub_04(d) | Allies destroyed Lightning 7699 | -5/Hub_04(d) | Found Prototype Device 7699 | -5/Hub_04(d) | Identified Exp. EM Shield 7716 | -5/Hub_04(d) | Found Prototype Device 7716 | -5/Hub_04(d) | Identified Exp. Phase Shifter 7727 | -5/Hub_04(d) | Lost 7 allies 7776 | -5/Hub_04(d) | Lost 4 allies 7838 | -5/Hub_04(d) | Network Hub disabled 7862 | -5/Hub_04(d) | Spotted Lightning 7862 | -5/Hub_04(d) | Spotted Lightning 7862 | -5/Hub_04(d) | Spotted Lightning 7903 | -5/Hub_04(d) | Core integrity fell below 50% 7908 | -5/Hub_04(d) | System corruption reached 10% 7917 | -5/Hub_04(d) | Crushed by falling debris 7953 | -5/Hub_04(d) | Lost 5 parts (1n3u1w) 7976 | -5/Hub_04(d) | Discovered exit to Factory (range 6) 7989 | -5/Hub_04(d) | Entered Factory 7989 | -4/Factory | Evolved 2 slots: Weapon x2 8017 | -4/Factory | Lost 7 parts (1p2n4u) 8215 | -4/Factory | Loaded intel: 8 recycling unit locations 8241 | -4/Factory | Build established: Mutant 8290 | -4/Factory | Lost 4 parts (1n2u1w) 8528 | -4/Factory | Garrison activated, responded to threat 8684 | -4/Factory | Lost 7 parts (2p1n2u2w) 8784 | -4/Factory | Lost 3 parts (2n1w) 8825 | -4/Factory | Core integrity fell below 50% 8833 | -4/Factory | Discovered new exit (range 8) 8840 | -4/Factory | Identified exit to Research 8841 | -4/Factory | Entered Research 8841 | -3/Research | Evolved 2 slots: Utility x2 8865 | -3/Research | Lost 4 parts (1p2n1u) 8891 | -3/Research | Found Prototype Device 8891 | -3/Research | Identified Exp. Thermal Shield 9002 | -3/Research | Build established: Scavenger-Assassin 9171 | -3/Research | Lost 4 parts (1p1n2u) 9388 | -3/Research | Fabricated Adv. Point Defense System? 9503 | -3/Research | Lost 3 parts (1n2w) 9540 | -3/Research | Released all parts (6) 9552 | -3/Research | Core integrity fell below 50% 9561 | -3/Research | Core integrity fell below 20% 9565 | -3/Research | Destroyed by P-80 Master with Gamma Rifle Last Messages --------------- Slug penetrates B-74 Champion. Slug penetrates Wall. Penetrated by Slug. Slug penetrates Antimatter Diverter. Slug penetrates G-67 Veteran. W-44 Eye sends out distress signal. Critical hit (Burn: +50). R-10 Processor collects Imp. Heavy Siege Treads. Penetrated by Slug. Slug penetrates Antimatter Diverter. Critical hit (Burn: +50). W-44 Eye sends out distress signal. Antimatter Diverter explodes. G-73 Enforcer destroyed. K-01 Serf collects debris. Penetrated by Slug. Slug penetrates Wall. K-01 Serf cleans the Antimatter Diverter. U-05 Engineer lays Concrete. The unstable cave ceiling collapses. Map ----- +----------------------------------------------------+ | ?# " #???# #??????????? | | ?#### ##"#/######## #??????????? | | ????# # *# """ #??????????? | | ????# + # """ #????#?????? | | ????# # # """ #### ###???? | | ????# # # ##### | | ????# # ! # | | ????# #| # | | ????# ####+## """ | | ????# ## # """ | | ???# # """ | | ???# + g | | ???# # g | | ???# # g p | | ???# ##### h h w | | ???# #?# p | | ???# ??# % u | | ???+ ???# | | ???# ???## p ################ | | ???# ???## #####??????????? | | ???# ????# g""" ????? | | ???? ????# gg """ ???? | | ??????? ?????# """k ???? | | ????????? ?????# ???? | | ??????????????????# w w ???? | | ??????????????????# k @ k ####+########????? | | ??????????? u ! #????????????????? | | ?????????? k G" #????????????????? | | ?????????? " #????????????????? | | ??????????? #????????????????? | | ?????????? #????????????????? | | ??????????? !]] #????????????????? | | ??????????? !]]u ^ ###+####????????????????? | | ??????????? ]] k^ #???????????????????????? | | ???????????? #???????????????????????? | | ??????????? #???????????????????????? | | ??????????? A????????????????????????? | | ????????????? ????????????????????????? | | ?????????????? #????????????????????????? | | ????????????????? ?????????????????????????? | | ??????????????????? ?????????????????????????? | | ?????????????????????????????????????????????????? | | ?????????????????????????????????????????????????? | | ?????????????????????????????????????????????????? | | ?????????????????????????????????????????????????? | | ?????????????????????????????????????????????????? | | ?????????????????????????????????????????????????? | | ?????????????????????????????????????????????????? | | ?????????????????????????????????????????????????? | | ?????????????????????????????????????????????????? | +----------------------------------------------------+ Best States ------------- Heat Dissipation 78 Coolant Potential 65 Energy Generation 45 Energy Capacity 600 Matter Stores 300 Matter Capacity 300 Sight Range 22 Robot Scan Range 18 Terrain Scan Density 10 Armor Coverage 1275 Resistance: KI 25 Resistance: EX 50 Resistance: EM 75 Core Shielding 30 Melee Speed Boost 20 Phase Shifting 20 Evasion (%) 70 Targeting Accuracy 6 Target Analysis 8 Armor Integrity Analysis 40 Recoil Reduction 5 Matter Filtering 30 Offensive Hacking 12 Defensive Hacking 14 Item Schematics ----------------- Carbon-fiber Leg | -6/Factory | Scanalyzed Robot Schematics ------------------ None Fabricated ------------ Adv. Point Defense System | x2 | -3/Research | Preloaded Repaired ---------- Nothing Studied --------- Arm. Wheel | -6/Factory | Hacked Wheel | -6/Factory | Hacked Gravmag System | -6/Factory | Hacked Mining Claw | -6/Factory | Hacked Mic. Nuclear Core | -6/Factory | Hacked Hvy. Treads | -5/Factory | Hacked Alien Tech Used ----------------- None Achievements -------------- Ambidextrous Bob, First Of His Name Civilization 2243 Do Not Disturb Generalissimo Hulk Smash Link The Feds Live, Flee, And Rebuild Physics Protects That Tickles You May Approach The Wall Challenges ------------ None Game ------ Seed HackingVariableStorage Manual? 0 Play Time 02:00:14 Cumulative 46.5 hours Start 2025.10.29 @ 20:07:59 End 2025.10.30 @ 17:04:20 Sessions 4 Manual Loads 0 Difficulty Rogue Special Mode None Game No. 49 Rogue 49 Adventurer 0 Explorer 0 Win Type - Total 1 Types 1/0/0/0/0/0/0/0/0/0 Lore% 45 Gallery% 42 Achievement% 29 Wizard Run 0 Options --------- Layout 1 ASCII 0 Keyboard 0 Movement Numpad Keybinds 0 Fullscreen 1 Font 32/SmallcapsGlow Map View 50x35 Zoom Use 0% Tactical HUD 0 Map Filters NONE Filters NONE Steam 1 RUN: 7ffd8291-4e24-4b98-9793-fa0231c5b666